Cogmind - Beta 16 @@@ ROGUE MODE // 2025.11.25 @ 09:59:54 Player: beans Result: Destroyed by Y-45 Defender with Heavy Assault Rifle Performance ------------- Evolutions (1) 500 Regions Visited (2) 400 Robots Destroyed (16) 80 Value Destroyed (245) 245 Prototype IDs (2) 40 Alien Tech Used (0) 0 Bonus (0) 0 TOTAL SCORE: 1265 Bonus ------- None Cogmind --------- Core Integrity 0/400 Matter 205/300 Energy 99/100 System Corruption 0% Temperature Cool (9) Movement Core (50) Location -9/Materials Parts ------- > --- POWER (1) -------- (None) > --- PROPULSION (3) --- (None) > --- UTILITY (2) ------ Visual Processing Unit Salvage Targeting Computer > --- WEAPON (3) ------- Shotgun > --- INVENTORY (5) ---- Cooled Ion Engine Visual Processing Unit Faulty Improved Medium Laser Shotgun Shotgun Peak State ------------ > --- POWER ------------ (None) > --- PROPULSION ------- (None) > --- UTILITY ---------- Visual Processing Unit Salvage Targeting Computer > --- WEAPON ----------- Shotgun Shotgun Shotgun > --- INVENTORY -------- Cooled Ion Engine Heat Sink Visual Processing Unit Improved Medium Laser [Rating: 10] Favorites ----------- Power Light Ion Engine Engine Light Ion Engine Propulsion Aluminum Leg Leg Aluminum Leg Flight Unit Flight Unit Utility Visual Processing Unit Processor Visual Processing Unit Weapon Assault Rifle Energy Gun Small Laser Ballistic Gun Assault Rifle Build | -11 -10 -9 ------- Run | Yrd Mat Mat Slots Evolved 2 | . . 2 Power . | . . . Propulsion 1 | . . 1 Utility . | . . . Weapon 1 | . . 1 Parts Attached 14 | 4 3 7 Power 2 | . 1 1 Engine 2 | . 1 1 Core . | . . . Reactor . | . . . Propulsion 4 | 2 2 . Treads . | . . . Leg 2 | 2 . . Wheel . | . . . Hover . | . . . Flight 2 | . 2 . Utility 2 | . . 2 Device . | . . . Storage . | . . . Processor 2 | . . 2 Hackware . | . . . Protection . | . . . Artifact . | . . . Weapon 6 | 2 . 4 Energy Gun 1 | . . 1 Energy Cannon . | . . . Ballistic Gun 5 | 2 . 3 Ballistic Cannon . | . . . Launcher . | . . . Special Weapon . | . . . Impact Weapon . | . . . Slashing Weapon . | . . . Piercing Weapon . | . . . Special Melee Weapon . | . . . Unidentified Prototypes 2 | . . 2 Parts Lost 7 | . . 7 Power 1 | . . 1 Propulsion 2 | . . 2 Utility . | . . . Weapon 4 | . . 4 Highest Loss Streak 6 | . . 6 To Critical Strikes . | . . . Average Backups 1 | . . 3 Power . | . . . Propulsion . | . . . Utility . | . . 1 Weapon . | . . 1 Tool/Special . | . . . Unused Backups 1 | . . 1 Power . | . . . Propulsion . | . . . Utility . | . . . Weapon 1 | . . 1 Tool/Special . | . . . Average Slot Usage (%) 47 | . 60 36 Engine 4 | . 3 4 Leg 9 | . 20 . Flight 7 | . 7 6 Processor 4 | . . 8 Ballistic Gun 21 | . 28 15 Peak Build Rating 10 | 4 5 10 Average Rating 4 | 2 4 4 On Entrance 3 | . 4 5 Avg Prop Armor Cover (%) . | . . . Naked Turns . | . . . Heaviest Build 6 | 3 6 6 Greatest Support 20 | 20 20 8 Greatest Overweight (x) 1 | . . 1 Average Overweight (x) . | . . . Largest Inventory Capacity 5 | 5 5 5 Average Capacity 5 | 5 5 5 Most Carried 5 | 2 3 5 Average Carried 1 | . . 3 Final Capacity 5 | 5 5 5 Final Carried 5 | . 3 5 Class Distribution -------------------- 100% | Mutant Dominant Class ---------------- Mutant | -10/Materials Mutant | -9/Materials Resources | -11 -10 -9 ----------- Run | Yrd Mat Mat Matter Collected 425 | 175 156 94 Remotely . | . . . Salvage Created 529 | . 201 328 Parts 34 | . 14 20 Haulers Intercepted 1 | . . 1 Recyclers Shooed 3 | . 1 2 Parts Field Recycled . | . . . Retrieved Matter . | . . . Parts Self-Destructed . | . . . Prevented . | . . . Parts Restored . | . . . Kills | -11 -10 -9 ------- Run | Yrd Mat Mat Combat Hostiles Destroyed 10 | . 4 6 Guns 10 | . 4 6 Classes Destroyed 8 | . 4 4 Worker 1 | . . 1 Tunneler 1 | . . 1 Hauler 1 | . . 1 Recycler 2 | . 1 1 Watcher 1 | . 1 . Swarmer 6 | . 3 3 Grunt 3 | . 1 2 Sentry 1 | . . 1 Best Kill Streak 5 | . 5 5 Combat Bots Only 3 | . 3 3 Max Kills in Single Turn 2 | . 1 2 Gunslinging . | . . . Exploded . | . . . Melee . | . . . Uniques/NPCs Destroyed . | . . . Combat | -11 -10 -9 -------- Run | Yrd Mat Mat Hostile Shots Fired 138 | . 33 105 Missed 53 | . 10 43 Hits 85 | . 23 62 Projectile 85 | . 23 62 AOE 1 | . . 1 Critical Strikes 1 | . . 1 Damage Taken 1028 | . 192 836 Core 455 | . 46 409 Absorbed by Shields . | . . . Core Remaining (%) 90 | 100 81 . Volleys Fired 50 | . 18 32 Largest 3 | . 2 3 Hottest 69 | . 40 69 Shots Fired 91 | . 36 55 Gun 91 | . 36 55 Cannon . | . . . Launcher . | . . . Special . | . . . Kinetic 87 | . 36 51 Thermal 4 | . . 4 Explosive . | . . . Electromagnetic . | . . . Robot Hit Streak 8 | . 8 8 Robot Miss Streak 4 | . 4 4 Penetration Max . | . . . Secondary Targets 1 | . 1 . Max Gunslinging Chain 1 | . 1 . Shots Hit Robots 58 | . 22 36 Core Hits 28 | . 9 19 Critical Kills . | . . . Critical Parts Destroyed 1 | . 1 . Critical Strikes 1 | . 1 . Destroy 1 | . 1 . Melee Attacks . | . . . Impact . | . . . Slashing . | . . . Piercing . | . . . Sneak Attacks . | . . . Combat Hostiles . | . . . Follow-up Attacks . | . . . Damage Inflicted 652 | . 225 427 Guns 652 | . 225 427 Cannons . | . . . Explosions . | . . . Melee . | . . . Ramming . | . . . Kinetic 617 | . 225 392 Thermal 35 | . . 35 Explosive . | . . . Electromagnetic . | . . . Impact . | . . . Slashing . | . . . Piercing . | . . . Highest Corruption . | . . . Average Corruption . | . . . Corruption Purged . | . . . Corruption Blocked . | . . . Overload Shots . | . . . Overflow Damage . | . . . Projectiles . | . . . Explosions . | . . . Melee . | . . . Knockbacks . | . . . Impact . | . . . Kinetic . | . . . Secondary . | . . . Self-Inflicted Damage . | . . . Shots . | . . . Rammed . | . . . Targets Rammed . | . . . Kicked . | . . . Crushed . | . . . Highest Temperature 8 | . 8 8 Average Temperature 3 | . 4 3 Received Heat Transfer 294 | . 6 288 Siege Activations . | . . . Martial Activations . | . . . Shielding Activations . | . . . Robots Disrupted . | . . . Combat Hostiles . | . . . Robots Corrupted . | . . . Combat Hostiles . | . . . Parts Fried . | . . . Impact Corruptions . | . . . Robots Melted . | . . . Combat Hostiles . | . . . Parts Melted . | . . . Heat Transferred 75 | . . 75 Parts Sabotaged . | . . . Parts Stolen . | . . . Parts Stripped . | . . . Power Chain Reactions . | . . . Alert | -11 -10 -9 ------- Run | Yrd Mat Mat Maximum Alert Level . | . . . Low Security (%) 100 | 100 100 100 Level 1 . | . . . Level 2 . | . . . Level 3 . | . . . Level 4 . | . . . Level 5 . | . . . High Security . | . . . Max Security . | . . . Peak Influence 165 | . 77 165 Initial 32 | . . 32 Average 35 | . 35 43 Influence Increases 379 | . 127 252 Destroy 0b10 Robot/C 200 | . 80 120 Destroy 0b10 Robot/NC 30 | . 10 20 Destroy Leader 44 | . 22 22 Lose Combat Pursuer 105 | . 15 90 Influence Decreases 229 | . 50 179 Entered New Map 45 | . . 45 Time Decay 120 | . 50 70 Lost Part 64 | . . 64 Squads Dispatched 2 | . 1 1 Investigation 1 | . 1 . Extermination . | . . . Reinforcement 1 | . . 1 Assault . | . . . Garrison . | . . . Intercept . | . . . Searches Triggered . | . . . Construction Impeded . | . . . Haulers Reinforced . | . . . Active Scanning Responses . | . . . Cargo Convoy Interrupts . | . . . Stealth | -11 -10 -9 --------- Run | Yrd Mat Mat Distress Signals 3 | . 1 2 Communications Jammed . | . . . Distress Signals . | . . . Times Spotted 31 | . 5 26 Peak Tracking Total 11 | . 3 11 Tactical Retreats 2 | . 1 1 Traps | -11 -10 -9 ------- Run | Yrd Mat Mat Traps Triggered 1 | . 1 . Indirectly . | . . . Trap Hack Attempts . | . . . Triggered . | . . . Disarmed . | . . . Reprogrammed . | . . . Reused . | . . . Traps Extracted . | . . . Installed . | . . . Triggered . | . . . Machines | -11 -10 -9 ---------- Run | Yrd Mat Mat Machines Disabled . | . . . Max in Single Turn . | . . . Machines Repaired . | . . . Machines Dismantled . | . . . Machines Sabotaged . | . . . Overloaded Fab Kills . | . . . Hacking | -11 -10 -9 --------- Run | Yrd Mat Mat Machines Accessed . | . . . Terminals . | . . . Fabricators . | . . . Repair Stations . | . . . Recycling Units . | . . . Scanalyzers . | . . . Garrison Access . | . . . Total Hacks . | . . . Successful . | . . . Failed . | . . . Catastrophic . | . . . Database Lockouts . | . . . Manual . | . . . Terminals . | . . . Fabricators . | . . . Repair Stations . | . . . Recycling Units . | . . . Scanalyzers . | . . . Garrison Access . | . . . Terminal Hacks . | . . . Fabricator Hacks . | . . . Repair Station Hacks . | . . . Recycling Unit Hacks . | . . . Scanalyzer . | . . . Garrison Access Hacks . | . . . Unauthorized Hacks . | . . . Terminals . | . . . Fabricators . | . . . Repair Stations . | . . . Recycling Units . | . . . Scanalyzers . | . . . Garrison Access . | . . . Data Cores Recovered . | . . . Used . | . . . Hacking Detections . | . . . Full Trace Events . | . . . Feedback Events . | . . . Feedback Blocked . | . . . Robot Schematics Acquired . | . . . Robots Built . | . . . Authchips . | . . . Time . | . . . Total Robot Build Rating . | . . . Part Schematics Acquired . | . . . Parts Built . | . . . Authchips . | . . . Time . | . . . Total Part Build Rating . | . . . Part Studies Acquired . | . . . Parts Repaired . | . . . Time . | . . . Parts Recycled . | . . . Recycled Matter . | . . . Retrieved Matter . | . . . Retrieved Components . | . . . Parts Scanalyzed . | . . . Part Schematics Acquired . | . . . Parts Damaged . | . . . Bothacking | -11 -10 -9 ------------ Run | Yrd Mat Mat Used RIF Installer . | . . . Robots Hacked . | . . . Non-combat . | . . . Combat . | . . . Robot Hacks Applied . | . . . Relay Couplers Released . | . . . Fabnet Peak Effective % . | . . . Robots Rewired . | . . . Allies Hacked . | . . . Hacks Repelled . | . . . Allies | -11 -10 -9 -------- Run | Yrd Mat Mat Total Allies . | . . . Largest Group . | . . . Highest-Rated Group . | . . . Highest-Rated Ally . | . . . Total Orders . | . . . Ally Attacks . | . . . Total Damage . | . . . Kills . | . . . Allies Corrupted . | . . . Allies Melted . | . . . Intel | -11 -10 -9 ------- Run | Yrd Mat Mat Active Infowar (turns) 84 | . . 84 Optics 84 | . . 84 Robot Analysis Total . | . . . Derelict Logs Recovered . | . . . Drone Launches . | . . . Drone Recoveries . | . . . Exploration | -11 -10 -9 ------------- Run | Yrd Mat Mat Turns Passed 382 | 39 159 184 Spaces Moved 310 | 35 145 130 Core 100 | 14 . 86 Treads . | . . . Legs 74 | 21 53 . Wheels . | . . . Hover . | . . . Flight 136 | . 92 44 Fastest Speed 37 | 50 37 37 Average Speed 66 | 92 67 59 Slowest Speed 120 | 120 120 120 Overloaded Moves . | . . . Propulsion Burnouts . | . . . Robots Hopped . | . . . Potential Cave-ins . | . . . Cave-ins Triggered . | . . . Exploration Rate (%) 25 | 4 42 30 Regions Visited 2 Branch Regions . Pre-discovered Areas . | . . . Known Exits Taken . | . . . Unknown Exits Taken 2 | 1 1 . Scrap Searched . | . . . Spaces Dug . | . . . Terrain Destroyed . | . . . Melee . | . . . Projectile . | . . . AOE . | . . . Terrain Rammed . | . . . Walls Destroyed . | . . . Machines Disabled . | . . . Actions | -11 -10 -9 --------- Run | Yrd Mat Mat Total 403 | 42 173 188 Wait 7 | . . 7 Move 308 | 34 144 130 Hop . | . . . Pick Up 17 | 4 6 7 Fast Attach 1 | . . 1 Attach 12 | 4 1 7 Detach 3 | . . 3 Swap 2 | . 2 . Drop 3 | . 2 1 Fire 50 | . 18 32 Melee . | . . . Ram . | . . . Kick . | . . . Crush . | . . . Escape Stasis . | . . . Rewire . | . . . Trap . | . . . Miscellaneous . | . . . Route ------- -11/Scrapyard -10/Materials (discovered 2 exits: [*Mat] / [*Min]) -9/Materials History --------- Turn | Location | Event 2 | -11/Scrapyard | Met Revision 17 3 | -11/Scrapyard | Discovered new exit (range 15) 40 | -11/Scrapyard | Entered Materials 164 | -10/Materials | Discovered new exit (range 13) 175 | -10/Materials | Discovered new exit (range 12) 199 | -10/Materials | Entered another Materials area 199 | -9/Materials | Evolved 2 slots: Propulsion x1, Weapon x1 297 | -9/Materials | Core integrity fell below 50% 341 | -9/Materials | Lost 6 parts (1p1n4w) 352 | -9/Materials | Core integrity fell below 20% 356 | -9/Materials | Build established: Mutant 383 | -9/Materials | Destroyed by Y-45 Defender with Heavy Assault Rifle Last Messages --------------- R-06 Scavenger inserts Lgt. Armor Plating into recycling unit. S-10 Pest destroyed. R-06 Scavenger collects Lgt. Assault Rifle. R-06 Scavenger inserts Ion Engine into recycling unit. S-10 Pest destroyed. R-06 Scavenger collects Flight Unit. R-06 Scavenger inserts Imp. Medium Laser into recycling unit. Acquired 13 matter. R-06 Scavenger collects Lgt. Ion Engine. Acquired Visual Processing Unit. Acquired Shotgun. R-06 Scavenger collects Sml. Matter Pod. R-06 Scavenger destroyed. R-06 Scavenger collects Lgt. Assault Rifle. R-06 Scavenger collects Lgt. Ion Engine. Dropped Heat Sink. R-06 Scavenger collects Heat Sink. Map ----- +----------------------------------------------------+ | | | | | | | | | | | | | | | | | | | | | | | | | | | | | | | | | | | ?????????????????????????????????????????????????? | | ?????????????????????????????????????????????????? | | ?????????????????????????????????????????????????? | | ?????????????????????????????????????????????????? | | ?????????????????????????????????????????????????? | | ???????????????????????#+#???????????????????????? | | ???????????????????????# #???????????????????????? | | ??????????############## ########????????????????? | | ???????? @ #????????????????? | | ???????? #????????????????? | | ???????????## ![ #????????????????? | | ????????????# """ ! #????????????????? | | ????????????# """ #????????????????? | | ?????????##?# """ ###????????????????? | | ?????????? ## #??????????????????? | | ???????????+ #??????????????????? | | ???????????# ss""" +??????????????????? | | ????????"" # YY ! ! """s #??????????????????? | | ????????? + "Y" gg """ #??????????????????? | | ???????????## r""" g!r * ##?????????????????? | | ????????????# g =% % #?????????????????? | | ????????????# ==* % + ??????????????? | | ????????????# ########## # ???????????? | | ?????????#### # # ^ ######????????????? | | ?????????+ + """""# #?????????????????? | | ?????????####/## """""# #?????????????????? | | ??????????? # """""# #?????????????????? | | ??????????# "" # """""# ????????????????? | | ??????????# T" # """""# #####???????????????? | | ??????????# "" # """""# #???????????????????? | | ??????????# # """""#? #???????????????????? | | ??????????#! # #? #???????????????????? | | #####+##??# #####+#### #???????????????????? | +----------------------------------------------------+ Best States ------------- Heat Dissipation 28 Energy Generation 10 Energy Capacity 125 Matter Stores 300 Matter Capacity 300 Sight Range 18 Terrain Scan Density 10 Evasion (%) 62 Salvage Targeting 1 Item Schematics ----------------- None Robot Schematics ------------------ None Fabricated ------------ Nothing Repaired ---------- Nothing Studied --------- None Alien Tech Used ----------------- None Achievements -------------- None Challenges ------------ None Game ------ Seed TrackerIntegratedCompanion Manual? 0 Play Time 00:06:23 Cumulative 217.4 hours Start 2025.11.25 @ 09:55:42 End 2025.11.25 @ 09:59:54 Sessions 1 Manual Loads 0 Difficulty Rogue Special Mode None Game No. 616 Rogue 615 Adventurer 1 Explorer 0 Win Type - Total 0 Types 0/0/0/0/0/0/0/0/0/0 Lore% 65 Gallery% 62 Achievement% 38 Wizard Run 0 Options --------- Layout 1 ASCII 0 Keyboard 0 Movement Mouse Keybinds 0 Fullscreen 1 Font 24/Smallcaps Map View 50x35 Zoom Use 0% Tactical HUD 0 Map Filters NONE Filters NONE Steam 1 RUN: f1084070-4946-4d77-b2ad-5f625e761ab7